bitfinex-derivatives/quotes_BTCF0:USTF0_20240910
["timestamp","ask_amount","ask_price","bid_price","bid_amount"]
[1725982279058,0.087427,57188.0,57186.0,0.087429]
[1725982279261,0.0473,57190.0,57189.0,0.087425]
[1725982279462,0.0014,57191.0,57190.0,0.087423]
[1725982279860,0.0004,57191.0,57190.0,0.087423]
[1725982280267,0.0004,57191.0,57190.0,0.967423]
[1725982280865,0.0034,57191.0,57190.0,0.97806431]
[1725982283173,0.0014,57191.0,57190.0,0.97806431]
[1725982283473,0.0014,57191.0,57190.0,0.89064131]
[1725982283474,0.088821,57191.0,57190.0,0.89064131]
[1725982283660,0.135321,57191.0,57190.0,0.89064131]
[1725982284367,0.134321,57191.0,57190.0,0.89264131]
[1725982284570,0.0469,57191.0,57190.0,0.98006431]
[1725982284771,0.134321,57191.0,57190.0,0.98006431]
[1725982284972,0.134321,57191.0,57190.0,0.97806431]
[1725982285161,0.136321,57191.0,57190.0,0.89064131]
[1725982285364,0.223742,57191.0,57190.0,0.88]
[1725982285566,0.223742,57191.0,57189.0,0.0004]
[1725982285567,0.087423,57190.0,57189.0,0.0004]
[1725982285871,0.087823,57190.0,57189.0,0.0004]
[1725982287659,0.090823,57190.0,57189.0,0.0004]
[1725982288269,0.087823,57190.0,57189.0,0.0004]
[1725982288574,0.089823,57190.0,57189.0,0.0004]
[1725982288773,0.177246,57190.0,57189.0,0.0004]
[1725982289066,0.08744,57179.0,57172.0,0.0041]
[1725982289269,0.087432,57185.0,57170.0,0.135353]
[1725982289270,0.087441,57178.0,57177.0,0.087441]
[1725982289471,0.087441,57178.0,57177.0,0.967441]
[1725982290667,0.087436,57182.0,57181.0,0.087436]
[1725982290864,0.089423,57190.0,57181.0,0.0004]
[1725982291169,0.087435,57184.0,57183.0,0.087433]
[1725982291772,0.087435,57182.0,57181.0,0.0004]
[1725982291973,0.087835,57182.0,57181.0,0.087837]
[1725982293072,0.0004,57182.0,57181.0,0.175274]
[1725982293271,0.0004,57182.0,57181.0,0.087837]
[1725982293467,0.0004,57182.0,57181.0,0.175274]
[1725982294868,0.0014,57182.0,57181.0,0.19104182]
[1725982295772,0.0469,57191.0,57190.0,0.087423]
[1725982296074,0.0004,57191.0,57190.0,0.175246]
[1725982296267,0.0004,57191.0,57190.0,0.087823]
[1725982297069,0.0917,57200.0,57199.0,0.087409]
[1725982297275,0.22450144,57200.0,57199.0,0.087809]
[1725982297572,0.12004198,57200.0,57199.0,0.087809]
[1725982298977,0.12004198,57200.0,57199.0,0.0004]
[1725982299571,0.20744998,57200.0,57199.0,0.0004]
[1725982300268,0.20744998,57200.0,57199.0,0.087809]
[1725982300471,0.12004198,57200.0,57199.0,0.087809]
[1725982300677,0.12104198,57200.0,57199.0,0.087809]
[1725982300973,0.0465,57200.0,57199.0,0.087809]
[1725982301372,0.1046197,57204.0,57203.0,0.087403]
[1725982301580,0.1046197,57204.0,57203.0,0.967803]
[1725982301766,0.13295981,57204.0,57203.0,0.967803]
[1725982302170,0.02834011,57204.0,57203.0,0.967803]
[1725982302677,0.10466023,57204.0,57203.0,0.967803]
[1725982302875,0.13300034,57204.0,57203.0,0.967803]
[1725982303681,0.22040234,57204.0,57203.0,0.087803]
[1725982303870,0.13299229,57204.0,57203.0,0.087803]
[1725982304177,0.03734011,57204.0,57203.0,0.968803]
[1725982305882,0.03734011,57204.0,57203.0,1.40425902]
[1725982305883,0.009,57204.0,57203.0,1.40425902]
[1725982306974,0.0483,57214.0,57203.0,1.40425902]
[1725982306975,0.135687,57214.0,57213.0,0.087388]
[1725982307480,0.135687,57214.0,57213.0,0.087788]
[1725982307772,0.3250941,57215.0,57214.0,0.087386]
[1725982307979,0.3250941,57215.0,57214.0,0.087786]
[1725982309673,0.3250941,57215.0,57214.0,0.175172]
[1725982309979,0.0032941,57215.0,57214.0,0.087786]
[1725982310371,0.3546791,57215.0,57214.0,0.0014]
[1725982310569,0.4420641,57215.0,57214.0,0.0014]
[1725982310980,0.3546791,57215.0,57214.0,0.0014]
[1725982311573,1.5664241,57215.0,57214.0,0.0014]
[1725982312581,0.0172941,57215.0,57214.0,0.0014]
[1725982312874,0.1046791,57215.0,57214.0,0.0014]
[1725982313470,0.1046791,57215.0,57214.0,0.088786]
[1725982313770,0.1046791,57215.0,57214.0,0.0014]
[1725982315968,0.0172941,57215.0,57214.0,0.088786]
[1725982316974,0.0172941,57215.0,57214.0,0.176172]
[1725982317686,0.0041,57228.0,57227.0,0.087366]
[1725982317880,0.087348,57239.0,57234.0,0.087354]
[1725982318077,0.0041,57242.0,57234.0,0.087354]
[1725982318078,0.10465218,57242.0,57238.0,0.088149]
[1725982318284,0.20325218,57244.0,57238.0,0.19645405]
[1725982318476,0.0986,57244.0,57243.0,0.0008]
[1725982318674,0.0986,57244.0,57238.0,0.19645405]
[1725982318675,0.0994,57244.0,57238.0,0.19645405]
[1725982318886,0.0994,57244.0,57234.0,0.88]
[1725982318887,0.08735,57239.0,57234.0,0.88]
[1725982319078,0.08735,57239.0,57234.0,0.967356]
[1725982319274,0.087347,57241.0,57236.0,0.087352]
[1725982319483,0.087348,57240.0,57232.0,0.087359]
[1725982319689,0.087353,57237.0,57232.0,0.087359]
[1725982319873,0.087353,57237.0,57228.0,0.0477]
[1725982320180,0.0994,57244.0,57230.0,0.087362]
[1725982320379,0.0994,57244.0,57229.0,0.88]
[1725982320380,0.25,57241.0,57229.0,0.88]
[1725982320577,0.087362,57230.0,57229.0,0.88]
[1725982320973,0.25,57232.0,57226.0,0.01091556]
[1725982321177,0.087375,57222.0,57212.0,0.2541]
[1725982321383,0.25,57227.0,57212.0,0.2541]
[1725982321384,0.087378,57220.0,57216.0,0.087382]
[1725982321577,0.10465218,57228.0,57217.0,0.087381]
[1725982321778,0.0971,57229.0,57218.0,0.08738]
[1725982321994,0.08737,57225.0,57213.0,0.88]
[1725982322182,0.02833116,57228.0,57212.0,0.01052479]
[1725982322183,0.25,57217.0,57212.0,0.01052479]
[1725982322489,0.25,57213.0,57202.0,0.087403]
[1725982322692,0.132884,57216.0,57203.0,0.88]
[1725982322693,0.25,57209.0,57203.0,0.88]
[1725982322984,0.087402,57204.0,57203.0,0.88]
[1725982323189,0.25,57213.0,57203.0,0.88]
[1725982323386,0.087394,57209.0,57203.0,0.88]
[1725982323888,0.08738,57218.0,57208.0,0.25]
[1725982324075,0.08738,57218.0,57217.0,0.0008]
[1725982324281,0.0455,57222.0,57217.0,0.0008]
[1725982324596,0.0483,57229.0,57224.0,0.08737]
[1725982324886,0.0483,57229.0,57225.0,0.087369]
[1725982324887,0.02832961,57228.0,57225.0,0.087369]
[1725982325090,0.135664,57229.0,57225.0,0.087369]
[1725982325277,0.135664,57229.0,57228.0,0.0004]
[1725982325481,0.11569357,57229.0,57228.0,0.0004]
[1725982326293,0.087374,57222.0,57221.0,0.0008]
[1725982326491,0.087397,57207.0,57204.0,0.091501]
[1725982326679,0.0004,57205.0,57204.0,0.087401]
[1725982326887,0.087397,57207.0,57204.0,0.967401]
[1725982327095,0.087397,57207.0,57206.0,0.0004]
[1725982327582,0.087397,57207.0,57205.0,0.0874]
[1725982327782,0.0004,57206.0,57204.0,0.88]
[1725982327994,0.0874,57205.0,57204.0,0.88]
[1725982328190,0.0878,57205.0,57204.0,0.88]
[1725982328494,0.52444,57205.0,57182.0,0.05609985]
[1725982328800,0.2504,57206.0,57191.0,0.087421]
[1725982328801,0.25,57194.0,57191.0,0.087421]
[1725982329088,0.25,57194.0,57181.0,0.0944]
[1725982329089,0.25,57195.0,57182.0,0.087434]
[1725982329303,0.25,57185.0,57180.0,0.01085744]
[1725982329493,0.087435,57182.0,57181.0,0.88]
[1725982329690,0.087435,57182.0,57174.0,0.087447]
[1725982329894,0.0004,57183.0,57172.0,0.01064055]
[1725982329895,0.0004,57175.0,57172.0,0.01064055]
[1725982330088,0.0004,57175.0,57160.0,0.0493]
[1725982330292,0.0004,57175.0,57168.0,0.087456]
[1725982330495,0.0004,57175.0,57173.0,0.087449]
[1725982331387,0.0004,57175.0,57173.0,0.687449]
[1725982331593,0.0004,57183.0,57181.0,0.087436]
[1725982331794,0.0004,57183.0,57182.0,0.2504]
[1725982331989,0.3228,57194.0,57182.0,0.77504]
[1725982332184,0.3228,57194.0,57193.0,0.0004]
[1725982332185,0.001,57194.0,57193.0,0.0004]
[1725982333093,0.139496,57208.0,57193.0,2.00492]
[1725982333298,0.135396,57208.0,57207.0,0.0004]
[1725982335897,0.137396,57208.0,57207.0,0.0004]
[1725982336895,0.05,57208.0,57207.0,0.0004]
[1725982337200,0.002,57208.0,57207.0,1.212197]
[1725982337396,0.0476,57220.0,57216.0,0.087382]
[1725982337700,0.087372,57224.0,57219.0,0.0004]
[1725982337890,0.087372,57224.0,57223.0,0.0004]
[1725982338092,0.087372,57224.0,57223.0,0.88]
[1725982338898,0.42248001,57230.0,57223.0,1.40428]
[1725982338899,0.00248001,57230.0,57223.0,1.40428]
[1725982339091,0.007,57224.0,57223.0,0.968373]
[1725982339692,0.007,57224.0,57223.0,0.967373]
[1725982339892,0.002,57224.0,57223.0,0.967373]
[1725982340096,0.002,57224.0,57223.0,2.091653]
[1725982340302,0.002,57231.0,57230.0,0.087362]
[1725982340488,0.002,57231.0,57230.0,0.087762]
[1725982340691,0.002,57231.0,57230.0,1.211962]
[1725982341888,0.002,57231.0,57230.0,2.091962]
[1725982342892,0.008,57231.0,57230.0,2.092962]
[1725982343107,0.008,57231.0,57230.0,2.10393593]
[1725982344209,0.008,57231.0,57230.0,0.97973593]
[1725982344795,0.008,57231.0,57230.0,0.0014]
[1725982344999,0.09536,57231.0,57230.0,0.0014]
[1725982345204,0.428,57231.0,57214.0,0.42]
[1725982345414,0.087777,57220.0,57219.0,0.8804]
[1725982345705,0.087777,57220.0,57219.0,0.0004]
[1725982346298,0.087777,57220.0,57219.0,0.967379]
[1725982346299,0.0004,57220.0,57219.0,0.967379]
[1725982347703,0.0004,57220.0,57219.0,0.971379]
[1725982349600,0.0004,57220.0,57219.0,0.884]
[1725982349805,0.0004,57220.0,57202.0,0.3209]
[1725982349806,1.632057,57220.0,57198.0,0.4248]
[1725982350110,0.0456,57219.0,57207.0,0.087397]
[1725982350303,0.13298,57219.0,57207.0,0.087397]
[1725982350498,0.0456,57219.0,57202.0,0.88]
[1725982350705,0.0456,57219.0,57203.0,0.42]
[1725982350902,0.0456,57219.0,57202.0,0.88]
[1725982350903,0.087381,57218.0,57208.0,0.42]
[1725982351103,0.087387,57214.0,57209.0,0.087393]
[1725982351701,0.087387,57214.0,57211.0,0.08739]
[1725982352109,0.087387,57214.0,57203.0,0.429]
[1725982352305,0.087387,57214.0,57211.0,0.08739]
[1725982354028,0.0456,57219.0,57213.0,0.42]
[1725982354213,0.0456,57219.0,57218.0,0.08778]
[1725982354904,0.0456,57219.0,57218.0,0.0004]
[1725982355106,0.132979,57219.0,57218.0,0.0004]
[1725982355308,0.0456,57219.0,57218.0,0.0004]
[1725982355609,0.132979,57219.0,57218.0,0.0004]
[1725982355818,0.140979,57219.0,57218.0,0.0014]
[1725982356017,0.0536,57219.0,57218.0,0.0014]
[1725982356514,0.0456,57219.0,57218.0,0.0004]
[1725982356709,0.140979,57219.0,57218.0,0.0014]
[1725982356911,0.0536,57219.0,57218.0,0.0014]
[1725982357213,0.140979,57219.0,57218.0,0.08878]
[1725982357409,0.140979,57219.0,57218.0,0.0014]
[1725982359003,0.132979,57219.0,57218.0,0.0004]
[1725982359212,0.140979,57219.0,57218.0,0.0014]
[1725982359912,0.132979,57219.0,57218.0,0.0004]
[1725982360103,0.134979,57219.0,57218.0,0.0004]
[1725982361210,0.134979,57219.0,57218.0,0.08778]
[1725982361409,0.134979,57219.0,57218.0,0.0004]
[1725982361609,0.132979,57219.0,57218.0,0.0004]
[1725982361817,0.140979,57219.0,57218.0,0.0014]
[1725982362604,0.140979,57219.0,57218.0,0.0004]
[1725982362811,0.138979,57219.0,57218.0,0.0014]
[1725982363317,0.138979,57219.0,57218.0,0.08878]
[1725982364316,0.16731112,57219.0,57218.0,0.08878]
[1725982365309,0.16931112,57219.0,57218.0,0.08878]
[1725982365801,0.08193212,57219.0,57218.0,0.08878]
[1725982366310,0.25669012,57219.0,57218.0,0.0014]
[1725982367109,0.18642404,57219.0,57218.0,0.0014]
[1725982367413,0.133473,57223.0,57218.0,0.0014]
[1725982367414,0.10449239,57223.0,57222.0,0.087374]
[1725982367615,0.10449239,57233.0,57230.0,0.087362]
[1725982367823,0.10449239,57239.0,57230.0,0.967762]
[1725982368119,0.15089239,57241.0,57230.0,1.491962]
[1725982368511,0.15089239,57241.0,57230.0,2.139462]
[1725982368820,0.0464,57241.0,57230.0,1.015262]
[1725982369211,0.0464,57241.0,57230.0,0.967762]
[1725982369407,0.15089239,57241.0,57230.0,1.491962]
[1725982369610,0.10449239,57240.0,57230.0,1.491962]
[1725982369817,0.0044,57231.0,57230.0,1.492962]
[1725982370212,0.0044,57231.0,57230.0,1.50364115]
[1725982370621,0.0044,57231.0,57230.0,0.97944115]
[1725982371619,0.0024,57231.0,57230.0,0.97844115]
[1725982371825,0.0074,57231.0,57230.0,0.97944115]
[1725982373013,0.0074,57231.0,57230.0,0.89207915]
[1725982373218,0.0024,57231.0,57230.0,0.89107915]
[1725982373515,0.0074,57231.0,57230.0,0.89207915]
[1725982374717,0.0074,57231.0,57230.0,0.97944115]
[1725982376621,0.09476,57231.0,57230.0,0.89207915]
[1725982377018,0.0074,57231.0,57230.0,0.89207915]
[1725982377926,0.09476,57231.0,57230.0,0.89207915]
[1725982378229,0.087373,57223.0,57222.0,0.0004]
[1725982378522,0.087373,57223.0,57214.0,0.087386]
[1725982378523,0.087383,57217.0,57214.0,0.087386]
[1725982378725,0.10448917,57220.0,57215.0,0.88]
[1725982378934,0.19186617,57220.0,57219.0,0.0004]
[1725982379122,0.087377,57220.0,57219.0,0.0004]
[1725982379923,0.087377,57220.0,57215.0,0.88]
[1725982380229,0.087381,57218.0,57216.0,0.087383]
[1725982380531,0.10448917,57221.0,57215.0,0.88]
[1725982380532,0.0477,57222.0,57219.0,0.087378]
[1725982380831,0.0477,57222.0,57221.0,0.0004]
[1725982381628,0.0477,57222.0,57221.0,0.087776]
[1725982382213,0.07903035,57222.0,57221.0,0.087776]
[1725982382417,0.0507,57222.0,57221.0,0.087776]
[1725982382615,0.003,57222.0,57221.0,0.087776]
[1725982383025,0.003,57222.0,57221.0,0.0004]
[1725982383224,0.003,57222.0,57221.0,0.087776]
[1725982383526,0.003,57222.0,57221.0,0.0004]
[1725982383527,0.1187043,57222.0,57221.0,0.0004]
[1725982384127,0.0313303,57222.0,57221.0,0.0004]
[1725982384433,0.0313303,57222.0,57221.0,0.087776]
[1725982384617,0.0283303,57222.0,57221.0,0.087776]
[1725982384819,0.19386317,57222.0,57221.0,0.087776]
[1725982385021,1.63182399,57222.0,57221.0,0.0004]
[1725982385322,0.087381,57218.0,57207.0,0.087397]
[1725982385524,0.087399,57206.0,57203.0,0.087402]
[1725982385835,0.25,57204.0,57189.0,0.25]
[1725982386123,0.087412,57198.0,57192.0,0.08742]
[1725982386330,0.087412,57198.0,57189.0,0.05908658]
[1725982386331,0.087405,57202.0,57189.0,0.30908658]
[1725982386527,0.10450848,57203.0,57189.0,0.30908658]
[1725982386528,0.02834146,57201.0,57198.0,0.25]
[1725982386734,0.10450848,57207.0,57206.0,0.087399]
[1725982386922,0.10450848,57207.0,57206.0,0.087799]
[1725982386923,0.02834073,57207.0,57206.0,0.087799]
[1725982387118,0.0004,57208.0,57206.0,0.087799]
[1725982387325,0.0004,57208.0,57207.0,0.087797]
[1725982387533,0.0004,57208.0,57207.0,0.337797]
[1725982388031,0.0004,57208.0,57207.0,0.341797]
[1725982388617,0.0004,57208.0,57207.0,0.337797]
[1725982388828,0.0004,57208.0,57207.0,1.22954201]
[1725982388829,0.0024,57208.0,57207.0,1.22954201]
[1725982389035,0.0002,57208.0,57207.0,2.44133901]
[1725982389227,0.0041,57221.0,57207.0,2.26654501]
[1725982389433,0.0041,57227.0,57220.0,0.0004]
[1725982389631,0.0474,57228.0,57224.0,0.08737]
[1725982389926,0.0474,57228.0,57227.0,0.0004]
[1725982390428,0.134765,57228.0,57227.0,0.0004]
[1725982390628,0.134765,57228.0,57227.0,0.8804]
[1725982391219,0.22213,57228.0,57227.0,0.0004]
[1725982391422,0.22213,57228.0,57220.0,0.0004]
[1725982391423,0.087376,57221.0,57220.0,0.0004]
[1725982391619,0.087776,57221.0,57220.0,0.0004]
[1725982391937,0.11610989,57221.0,57220.0,0.0004]
[1725982392130,0.30789391,57221.0,57220.0,0.0004]
[1725982392336,0.20348589,57221.0,57220.0,0.0004]
[1725982392645,0.20348589,57221.0,57199.0,0.0048]
[1725982392646,0.087392,57210.0,57199.0,0.0048]
[1725982392929,0.087392,57210.0,57189.0,0.091524]
[1725982392930,0.2504,57204.0,57189.0,0.091524]
[1725982393138,0.2504,57204.0,57190.0,0.88]
[1725982393139,0.087417,57194.0,57190.0,0.88]
[1725982393319,0.087417,57195.0,57191.0,0.087421]
[1725982393522,0.087417,57195.0,57194.0,0.0004]
[1725982393824,0.337417,57195.0,57194.0,0.0004]
[1725982395130,0.0041,57202.0,57194.0,0.0004]
[1725982395436,0.087403,57203.0,57201.0,0.0004]
[1725982395620,0.17481,57202.0,57201.0,0.0004]
[1725982395939,0.17481,57202.0,57185.0,0.0041]
[1725982395940,0.087409,57200.0,57185.0,0.0041]
[1725982396235,0.0004,57186.0,57182.0,0.087435]
[1725982396531,0.25,57191.0,57182.0,0.087435]
[1725982396532,0.0004,57183.0,57182.0,0.087435]
[1725982397237,0.0004,57183.0,57177.0,0.087443]
[1725982397418,0.0004,57183.0,57178.0,0.087441]
[1725982397621,0.33743,57186.0,57178.0,0.087441]
[1725982397823,0.0937,57190.0,57185.0,0.0004]
[1725982398033,0.0937,57190.0,57173.0,0.05983835]
[1725982398034,0.08744,57180.0,57174.0,0.967447]
[1725982398335,0.0004,57175.0,57174.0,0.967447]
[1725982399229,0.0493,57189.0,57174.0,0.967447]
[1725982399230,0.0041,57189.0,57188.0,0.087426]
[1725982399425,0.087413,57197.0,57185.0,0.006]
[1725982399426,0.087413,57197.0,57190.0,0.087422]
[1725982399627,0.087416,57195.0,57191.0,0.087421]
[1725982399823,0.087413,57197.0,57191.0,0.087421]
[1725982400022,0.087417,57194.0,57185.0,0.006]
[1725982400223,0.25,57192.0,57185.0,0.006]
[1725982400529,0.087421,57192.0,57185.0,0.006]
[1725982400828,0.087421,57192.0,57185.0,0.01071661]
[1725982401128,0.087406,57202.0,57174.0,0.9847]
[1725982401129,0.087417,57194.0,57184.0,0.25]
[1725982401320,0.087417,57194.0,57193.0,0.0004]
[1725982402027,0.087417,57194.0,57193.0,0.8804]
[1725982403634,0.087417,57194.0,57193.0,0.8814]
[1725982405140,0.25,57197.0,57175.0,0.091545]
[1725982405141,0.52456,57193.0,57175.0,0.0041]
[1725982405433,0.0475,57199.0,57166.0,0.0041]
[1725982405434,0.087443,57177.0,57166.0,0.0041]
[1725982405732,0.087443,57177.0,57161.0,0.0492]
[1725982405733,0.087454,57170.0,57161.0,0.0492]
[1725982405936,0.0004,57176.0,57161.0,0.0492]
[1725982405937,0.0004,57162.0,57161.0,0.0492]
[1725982406237,0.25,57174.0,57161.0,0.136667]
[1725982406547,0.337447,57174.0,57173.0,0.0004]
[1725982407033,0.424894,57174.0,57173.0,0.0004]
[1725982407239,0.424894,57174.0,57160.0,0.01089387]
[1725982407240,1.37472,57174.0,57160.0,0.01089387]
[1725982407436,0.0004,57161.0,57153.0,0.0492]
[1725982407631,0.0004,57154.0,57153.0,0.0492]
[1725982407942,0.087471,57159.0,57153.0,0.0492]
[1725982408132,0.087469,57160.0,57158.0,0.0004]
[1725982408326,0.0004,57161.0,57153.0,0.05992624]
[1725982408526,0.0004,57161.0,57160.0,0.0004]
[1725982409729,0.337867,57161.0,57160.0,0.0004]
[1725982410335,0.087867,57161.0,57160.0,0.0004]
[1725982411137,0.087867,57161.0,57160.0,0.0144]
[1725982411736,0.950174,57161.0,57160.0,0.0144]
[1725982412042,0.950174,57161.0,57160.0,0.0054]
[1725982412043,0.471434,57161.0,57160.0,0.0054]
[1725982412243,1.596274,57161.0,57160.0,0.0054]
[1725982412443,0.996274,57161.0,57160.0,0.0054]
[1725982412634,0.996274,57161.0,57153.0,0.01072624]
[1725982412635,0.087478,57154.0,57153.0,0.01072624]
[1725982412838,0.087478,57154.0,57148.0,0.88]
[1725982412839,0.087486,57149.0,57148.0,0.88]
[1725982413145,0.337886,57149.0,57148.0,0.88]
[1725982413332,0.424972,57149.0,57148.0,0.88]
[1725982413530,0.337486,57149.0,57148.0,0.88]
[1725982414740,0.337486,57149.0,57148.0,0.882]
[1725982415241,0.337486,57149.0,57130.0,0.0041]
[1725982415242,0.087492,57145.0,57130.0,0.091613]
[1725982415542,0.0004,57131.0,57128.0,0.2981]
[1725982415747,0.0004,57131.0,57130.0,0.087515]
[1725982416248,0.0004,57131.0,57130.0,0.967515]
[1725982417437,0.0004,57131.0,57130.0,0.981515]
[1725982418346,0.25,57146.0,57130.0,2.356635]
[1725982418546,0.174979,57147.0,57145.0,0.087491]
[1725982418839,0.174979,57147.0,57146.0,0.0004]
[1725982418840,0.087489,57147.0,57146.0,0.0004]
[1725982419437,0.0476,57150.0,57146.0,0.8804]
[1725982419639,0.135085,57150.0,57149.0,0.0004]
[1725982419841,0.087483,57152.0,57151.0,0.087483]
[1725982420041,0.087483,57152.0,57151.0,0.967883]
[1725982420545,0.337483,57152.0,57151.0,0.0004]
[1725982420734,0.424966,57152.0,57151.0,0.0004]
[1725982420938,0.337483,57152.0,57151.0,0.0004]
[1725982421938,0.341483,57152.0,57151.0,0.0004]
[1725982423343,0.341483,57152.0,57143.0,0.0004]
[1725982423344,0.087493,57144.0,57143.0,0.0004]
[1725982423643,0.337893,57144.0,57143.0,0.0004]
[1725982424443,0.0004,57144.0,57143.0,0.0004]
[1725982424647,0.0004,57144.0,57143.0,0.087895]
[1725982425042,0.0004,57144.0,57143.0,0.092895]
[1725982425435,0.0004,57144.0,57143.0,0.092495]
[1725982430342,0.0004,57144.0,57143.0,0.17999]
[1725982430544,0.0004,57144.0,57143.0,0.092495]
[1725982431444,0.337893,57144.0,57143.0,0.092495]
[1725982431637,0.337893,57144.0,57143.0,0.005]
[1725982432044,0.2504,57144.0,57143.0,0.005]
[1725982432350,0.2504,57144.0,57143.0,0.092495]
[1725982432351,0.337893,57144.0,57143.0,0.092495]
[1725982432538,0.337893,57144.0,57143.0,0.005]
[1725982432741,0.425386,57144.0,57143.0,0.005]
[1725982434246,0.43632324,57144.0,57143.0,0.005]
[1725982434747,0.34883024,57144.0,57143.0,0.005]
[1725982434949,0.337893,57144.0,57143.0,0.005]
[1725982436656,0.337893,57144.0,57143.0,0.885]
[1725982437450,0.337893,57144.0,57143.0,0.005]
[1725982437654,0.087504,57137.0,57136.0,0.01074157]
[1725982437851,0.25,57137.0,57125.0,0.087522]
[1725982438052,0.087519,57128.0,57119.0,0.0462]
[1725982438259,0.25,57130.0,57119.0,0.0462]
[1725982438260,0.0004,57120.0,57119.0,0.0462]
[1725982438557,0.087521,57126.0,57122.0,0.087526]
[1725982438756,0.087521,57126.0,57125.0,0.0004]
[1725982439057,0.337515,57130.0,57125.0,0.0004]
[1725982439257,0.337515,57130.0,57129.0,0.0004]
[1725982439555,0.33751,57134.0,57129.0,0.0004]
[1725982439760,0.087512,57132.0,57129.0,0.0004]
[1725982439959,0.087514,57131.0,57129.0,0.087515]
[1725982440561,0.01111075,57137.0,57132.0,0.087511]
[1725982440562,0.087508,57135.0,57132.0,0.087511]
[1725982440753,0.087508,57135.0,57134.0,0.0004]
[1725982441458,0.175016,57135.0,57134.0,0.8804]
[1725982441658,0.087508,57135.0,57134.0,0.8804]
[1725982443266,0.087508,57135.0,57134.0,0.8834]
[1725982443452,0.175016,57135.0,57134.0,0.8874]
[1725982443857,0.175016,57135.0,57134.0,0.0074]
[1725982444563,0.355016,57135.0,57134.0,0.0074]
[1725982444760,0.087526,57123.0,57122.0,0.05220912]
[1725982445061,0.267526,57123.0,57122.0,0.05220912]
[1725982445250,0.267926,57123.0,57122.0,0.93220912]
[1725982445563,0.355452,57123.0,57122.0,0.05220912]
[1725982446063,0.267926,57123.0,57122.0,0.05220912]
[1725982447165,0.356452,57123.0,57122.0,0.06020912]
[1725982447557,0.356452,57123.0,57122.0,0.06320912]
[1725982447966,1.481652,57123.0,57122.0,0.06320912]
[1725982448166,1.551652,57123.0,57122.0,0.06320912]
[1725982448356,1.551652,57123.0,57122.0,0.06020912]
[1725982448556,1.553652,57123.0,57122.0,0.06020912]
[1725982449052,1.552652,57123.0,57122.0,0.05320912]
[1725982449252,1.56352624,57123.0,57122.0,0.05320912]
[1725982449455,0.087533,57118.0,57113.0,0.10441824]
[1725982449657,0.25,57114.0,57113.0,0.10441824]
[1725982449859,0.2504,57114.0,57113.0,0.10441824]
[1725982450253,0.337939,57114.0,57113.0,0.10441824]
[1725982450458,0.337939,57114.0,57113.0,0.11518278]
[1725982450757,0.337939,57114.0,57113.0,0.12318278]
[1725982451262,0.337939,57114.0,57113.0,0.11241824]
[1725982451462,0.337939,57114.0,57113.0,0.10441824]
[1725982451660,0.338939,57114.0,57113.0,0.11241824]
[1725982451860,0.338939,57114.0,57113.0,0.11941824]
[1725982452665,0.339939,57114.0,57113.0,0.11941824]
[1725982452864,0.952758,57114.0,57113.0,0.11941824]
[1725982453064,0.952758,57114.0,57103.0,0.13922432]
[1725982453065,0.087555,57104.0,57103.0,0.13922432]
[1725982453269,0.42511,57104.0,57103.0,0.13922432]
[1725982453467,0.2504,57104.0,57094.0,0.08757]
[1725982453658,0.2504,57095.0,57094.0,0.08757]
[1725982453856,0.2504,57095.0,57091.0,0.087574]
[1725982453857,0.33797,57095.0,57091.0,0.087574]
[1725982454056,0.0004,57092.0,57091.0,0.087574]
[1725982454372,0.0004,57092.0,57090.0,0.01073685]
[1725982454565,0.0004,57092.0,57091.0,0.134975]
[1725982454767,0.0004,57092.0,57091.0,1.014975]
[1725982454961,0.25,57095.0,57093.0,0.087571]
[1725982455165,0.251,57095.0,57094.0,0.0004]
[1725982455365,0.338568,57095.0,57094.0,0.0004]
[1725982456067,0.426136,57095.0,57094.0,0.0004]
[1725982456666,0.427136,57095.0,57094.0,0.0024]
[1725982457259,0.426136,57095.0,57094.0,0.0004]
[1725982457467,0.425136,57095.0,57094.0,0.0024]
[1725982457767,0.43596107,57095.0,57094.0,0.0024]
[1725982458363,0.34839307,57095.0,57094.0,0.0024]
[1725982458874,0.337568,57095.0,57094.0,0.0024]
[1725982460270,1.550576,57095.0,57094.0,0.0024]
[1725982460474,1.550576,57095.0,57087.0,0.01072932]
[1725982460668,0.2504,57088.0,57076.0,0.087596]
[1725982460867,0.2504,57088.0,57072.0,0.087603]
[1725982460868,0.0876,57075.0,57072.0,0.087603]
[1725982461166,0.2504,57073.0,57067.0,0.88]
[1725982461367,0.0004,57068.0,57067.0,0.88]
[1725982461563,0.087597,57077.0,57067.0,2.00568]
[1725982461564,0.25,57077.0,57067.0,2.00568]
[1725982461764,0.337597,57077.0,57076.0,0.0004]
[1725982462469,0.25,57077.0,57076.0,0.0004]
[1725982462863,0.25,57077.0,57076.0,0.087998]
[1725982463266,0.251,57077.0,57076.0,0.088998]
[1725982463470,0.338596,57077.0,57076.0,0.0014]
[1725982464279,0.001,57077.0,57076.0,0.0014]
[1725982464479,0.001,57077.0,57076.0,0.10002381]
[1725982464669,0.001,57077.0,57076.0,0.088998]
[1725982465767,0.002,57077.0,57076.0,0.090998]
[1725982466773,0.002,57077.0,57076.0,0.970998]
[1725982466965,0.087581,57087.0,57086.0,0.087581]
[1725982467170,0.25,57095.0,57086.0,0.0004]
[1725982467376,0.0466,57097.0,57094.0,0.0004]
[1725982467572,0.087564,57098.0,57094.0,0.0004]